[Event "Early-Titled-Tuesday-Blitz-May-07-2024"]
[Site "Chess.com"]
[Date "2024.05.07"]
[Round "7"]
[White "WhiteKnight2612"]
[Black "DanielNaroditsky"]
[Result "1/2-1/2"]
[WhiteElo "2845"]
[BlackElo "3058"]
[TimeControl "180+1"]
[EndTime "9:25:44 PDT"]
[Termination "Game drawn by 50-move rule"]

1. d4 {[%clk 0:02:59.4]} 1... Nf6 {[%clk 0:03:00.9]} 2. Nf3 {[%clk 0:02:57.4]}
2... g6 {[%clk 0:03:01.5]} 3. g3 {[%clk 0:02:57]} 3... Bg7 {[%clk 0:03:02]} 4.
Bg2 {[%clk 0:02:57.9]} 4... O-O {[%clk 0:03:02.9]} 5. O-O {[%clk 0:02:58.8]}
5... d6 {[%clk 0:03:03.6]} 6. c4 {[%clk 0:02:58.4]} 6... Nbd7 {[%clk 0:03:03.7]}
7. Nc3 {[%clk 0:02:59.1]} 7... e5 {[%clk 0:03:04.4]} 8. e4 {[%clk 0:02:57.6]}
8... c6 {[%clk 0:03:05]} 9. h3 {[%clk 0:02:57]} 9... Qa5 {[%clk 0:03:05.1]} 10.
Re1 {[%clk 0:02:52.3]} 10... exd4 {[%clk 0:03:05.5]} 11. Nxd4 {[%clk 0:02:52.2]}
11... Ne5 {[%clk 0:03:06.2]} 12. Bf1 {[%clk 0:02:50.2]} 12... Re8 {[%clk
0:03:05.4]} 13. Nb3 {[%clk 0:02:49.2]} 13... Qc7 {[%clk 0:03:04.4]} 14. Bf4
{[%clk 0:02:47.8]} 14... a5 {[%clk 0:03:03.8]} 15. Nd4 {[%clk 0:02:45.8]} 15...
Nfd7 {[%clk 0:02:59.7]} 16. Be3 {[%clk 0:02:41]} 16... Nc5 {[%clk 0:03:00]} 17.
f4 {[%clk 0:02:39.2]} 17... Ned7 {[%clk 0:03:00.4]} 18. Qc2 {[%clk 0:02:34]}
18... f5 {[%clk 0:02:58.4]} 19. Bg2 {[%clk 0:02:27]} 19... fxe4 {[%clk
0:02:58.7]} 20. Nxe4 {[%clk 0:02:27.4]} 20... Nxe4 {[%clk 0:02:59.2]} 21. Bxe4
{[%clk 0:02:28.3]} 21... Nc5 {[%clk 0:02:55.3]} 22. Bf2 {[%clk 0:01:53.5]} 22...
Nxe4 {[%clk 0:02:54.7]} 23. Rxe4 {[%clk 0:01:53.1]} 23... Bxh3 {[%clk
0:02:52.1]} 24. Rae1 {[%clk 0:01:48.9]} 24... Rxe4 {[%clk 0:02:43.7]} 25. Qxe4
{[%clk 0:01:48.9]} 25... Qf7 {[%clk 0:02:43.2]} 26. Nf3 {[%clk 0:01:43.3]} 26...
Bf5 {[%clk 0:02:39.3]} 27. Qe3 {[%clk 0:01:30.7]} 27... Qxc4 {[%clk 0:02:34.7]}
28. Qe7 {[%clk 0:01:21.4]} 28... Qf7 {[%clk 0:02:04.6]} 29. Qxd6 {[%clk
0:01:20.5]} 29... Re8 {[%clk 0:02:05]} 30. Rd1 {[%clk 0:01:16.9]} 30... Bg4
{[%clk 0:01:48.9]} 31. Rd3 {[%clk 0:01:06.5]} 31... Bxf3 {[%clk 0:01:45.3]} 32.
Rxf3 {[%clk 0:01:07.4]} 32... Qxa2 {[%clk 0:01:45.8]} 33. Qd7 {[%clk 0:00:46.7]}
33... Qf7 {[%clk 0:01:27.7]} 34. Qd2 {[%clk 0:00:47.2]} 34... a4 {[%clk
0:01:25.1]} 35. Rd3 {[%clk 0:00:45.9]} 35... h5 {[%clk 0:01:14.5]} 36. Rd7
{[%clk 0:00:45.7]} 36... Re7 {[%clk 0:01:14.3]} 37. Rd8+ {[%clk 0:00:43.5]}
37... Kh7 {[%clk 0:01:14.7]} 38. Bc5 {[%clk 0:00:44]} 38... Re8 {[%clk
0:00:58.9]} 39. Rd7 {[%clk 0:00:43.4]} 39... Qf5 {[%clk 0:00:59.4]} 40. Bf2
{[%clk 0:00:15.2]} 40... h4 {[%clk 0:00:53.1]} 41. Rxb7 {[%clk 0:00:13.9]} 41...
hxg3 {[%clk 0:00:51.7]} 42. Bxg3 {[%clk 0:00:14.5]} 42... Qg4 {[%clk 0:00:42.8]}
43. Qc3 {[%clk 0:00:14.9]} 43... Qd1+ {[%clk 0:00:40.8]} 44. Kg2 {[%clk
0:00:14.2]} 44... Qe2+ {[%clk 0:00:34.8]} 45. Kg1 {[%clk 0:00:13.1]} 45... Qe3+
{[%clk 0:00:29]} 46. Qxe3 {[%clk 0:00:13.5]} 46... Rxe3 {[%clk 0:00:29.9]} 47.
Bf2 {[%clk 0:00:14.1]} 47... Rb3 {[%clk 0:00:30.7]} 48. Ra7 {[%clk 0:00:14.4]}
48... Kg8 {[%clk 0:00:25]} 49. Rxa4 {[%clk 0:00:13.2]} 49... Bxb2 {[%clk
0:00:24]} 50. Rc4 {[%clk 0:00:13.8]} 50... Rc3 {[%clk 0:00:24.4]} 51. Rb4 {[%clk
0:00:13.5]} 51... Rc2 {[%clk 0:00:23.6]} 52. Rb7 {[%clk 0:00:11.5]} 52... c5
{[%clk 0:00:19.5]} 53. Rc7 {[%clk 0:00:10.7]} 53... c4 {[%clk 0:00:19.5]} 54.
Kf1 {[%clk 0:00:11.1]} 54... Ba3 {[%clk 0:00:16.4]} 55. Bd4 {[%clk 0:00:10.9]}
55... Bf8 {[%clk 0:00:09]} 56. Rc6 {[%clk 0:00:10.6]} 56... Kh7 {[%clk 0:00:08]}
57. Rc8 {[%clk 0:00:10.5]} 57... Rd2 {[%clk 0:00:04.8]} 58. Bc3 {[%clk
0:00:08.6]} 58... Rd3 {[%clk 0:00:03.8]} 59. Bf6 {[%clk 0:00:08.4]} 59... Bg7
{[%clk 0:00:02.1]} 60. Rc7 {[%clk 0:00:08.2]} 60... Rf3+ {[%clk 0:00:02.8]} 61.
Ke2 {[%clk 0:00:08.1]} 61... Rxf4 {[%clk 0:00:03.5]} 62. Bxg7 {[%clk 0:00:08.6]}
62... Kg8 {[%clk 0:00:04.2]} 63. Bc3 {[%clk 0:00:08.3]} 63... g5 {[%clk
0:00:03.7]} 64. Ke3 {[%clk 0:00:08.6]} 64... Rf7 {[%clk 0:00:03.7]} 65. Rc8+
{[%clk 0:00:08.3]} 65... Kh7 {[%clk 0:00:04.2]} 66. Rxc4 {[%clk 0:00:08.2]}
66... Kg6 {[%clk 0:00:05]} 67. Rg4 {[%clk 0:00:08.6]} 67... Kh5 {[%clk
0:00:05.5]} 68. Rg2 {[%clk 0:00:08.6]} 68... g4 {[%clk 0:00:06.3]} 69. Be5
{[%clk 0:00:08.9]} 69... Kg5 {[%clk 0:00:05.7]} 70. Ke4 {[%clk 0:00:09.3]} 70...
Rf1 {[%clk 0:00:06.1]} 71. Rc2 {[%clk 0:00:09.4]} 71... Re1+ {[%clk 0:00:06.4]}
72. Kd5 {[%clk 0:00:10.1]} 72... Kh4 {[%clk 0:00:03.6]} 73. Rc7 {[%clk
0:00:09.3]} 73... Kh3 {[%clk 0:00:02.8]} 74. Rg7 {[%clk 0:00:08.7]} 74... Rd1+
{[%clk 0:00:02.3]} 75. Ke6 {[%clk 0:00:09]} 75... Rf1 {[%clk 0:00:02.5]} 76. Rg6
{[%clk 0:00:09]} 76... Rf3 {[%clk 0:00:02.8]} 77. Kd5 {[%clk 0:00:08.7]} 77...
Rf1 {[%clk 0:00:02.9]} 78. Ke4 {[%clk 0:00:09]} 78... Re1+ {[%clk 0:00:03.6]}
79. Kf5 {[%clk 0:00:09.4]} 79... Rf1+ {[%clk 0:00:02.6]} 80. Bf4 {[%clk
0:00:09.7]} 80... Rg1 {[%clk 0:00:03.4]} 81. Rh6+ {[%clk 0:00:09.8]} 81... Kg2
{[%clk 0:00:03.7]} 82. Kxg4 {[%clk 0:00:10.5]} 82... Kf2+ {[%clk 0:00:04.5]} 83.
Kf5 {[%clk 0:00:10.5]} 83... Rg2 {[%clk 0:00:05.2]} 84. Rh3 {[%clk 0:00:10.8]}
84... Ke2 {[%clk 0:00:04.9]} 85. Ke4 {[%clk 0:00:11.3]} 85... Rf2 {[%clk
0:00:04.5]} 86. Ra3 {[%clk 0:00:11.8]} 86... Rg2 {[%clk 0:00:04.6]} 87. Ra2+
{[%clk 0:00:12.2]} 87... Kf1 {[%clk 0:00:05.2]} 88. Ra1+ {[%clk 0:00:12.7]}
88... Ke2 {[%clk 0:00:06]} 89. Ra2+ {[%clk 0:00:13]} 89... Kf1 {[%clk
0:00:06.5]} 90. Ra3 {[%clk 0:00:13.9]} 90... Ke2 {[%clk 0:00:07.1]} 91. Re3+
{[%clk 0:00:13.7]} 91... Kf1 {[%clk 0:00:07.6]} 92. Kf3 {[%clk 0:00:13.1]} 92...
Rf2+ {[%clk 0:00:07.9]} 93. Kg4 {[%clk 0:00:13.7]} 93... Re2 {[%clk 0:00:06.8]}
94. Ra3 {[%clk 0:00:13.5]} 94... Kg2 {[%clk 0:00:06.5]} 95. Be3 {[%clk
0:00:12.2]} 95... Rc2 {[%clk 0:00:03.3]} 96. Bd4 {[%clk 0:00:11.6]} 96... Re2
{[%clk 0:00:02.3]} 97. Kf4 {[%clk 0:00:11.2]} 97... Rd2 {[%clk 0:00:02.2]} 98.
Be5 {[%clk 0:00:10.4]} 98... Re2 {[%clk 0:00:02.2]} 99. Rg3+ {[%clk 0:00:10.5]}
99... Kf1 {[%clk 0:00:02.8]} 100. Bd4 {[%clk 0:00:09.4]} 100... Rg2 {[%clk
0:00:03.6]} 101. Ra3 {[%clk 0:00:08.7]} 101... Rd2 {[%clk 0:00:03.3]} 102. Kf3
{[%clk 0:00:07.8]} 102... Rd1 {[%clk 0:00:01.7]} 103. Be3 {[%clk 0:00:07.3]}
103... Rb1 {[%clk 0:00:01.8]} 104. Ra7 {[%clk 0:00:07.3]} 104... Ke1 {[%clk
0:00:01.7]} 105. Rg7 {[%clk 0:00:07.2]} 105... Kd1 {[%clk 0:00:02.4]} 106. Rc7
{[%clk 0:00:07.7]} 106... Ra1 {[%clk 0:00:02.3]} 107. Ke4 {[%clk 0:00:07.7]}
107... Rb1 {[%clk 0:00:01.9]} 108. Kd3 {[%clk 0:00:07.1]} 108... Rb3+ {[%clk
0:00:02.4]} 109. Ke4 {[%clk 0:00:07.4]} 109... Ke2 {[%clk 0:00:03.1]} 110. Rc2+
{[%clk 0:00:07.3]} 110... Kd1 {[%clk 0:00:03.9]} 111. Ra2 {[%clk 0:00:07.7]}
111... Rc3 {[%clk 0:00:03]} 112. Bd4 {[%clk 0:00:08]} 112... Rc2 {[%clk
0:00:03.1]} 113. Ra1+ {[%clk 0:00:07.1]} 113... Ke2 {[%clk 0:00:03.6]} 114. Rh1
{[%clk 0:00:08]} 114... Rd2 {[%clk 0:00:02.6]} 115. Bc3 {[%clk 0:00:07.6]}
115... Rc2 {[%clk 0:00:03.1]} 116. Kd4 {[%clk 0:00:08]} 116... Kf3 {[%clk
0:00:03.1]} 117. Rh3+ {[%clk 0:00:07.2]} 117... Kg4 {[%clk 0:00:03.5]} 118. Rh8
{[%clk 0:00:07.5]} 118... Rf2 {[%clk 0:00:03.9]} 119. Ke5 {[%clk 0:00:07.4]}
119... Re2+ {[%clk 0:00:03.6]} 120. Kd4 {[%clk 0:00:07.6]} 120... Re7 {[%clk
0:00:03.3]} 121. Bd2 {[%clk 0:00:07.3]} 121... Rd7+ {[%clk 0:00:03.2]} 122. Ke3
{[%clk 0:00:07.7]} 122... Re7+ {[%clk 0:00:03.7]} 123. Kd3 {[%clk 0:00:07.8]}
123... Rd7+ {[%clk 0:00:04]} 124. Kc3 {[%clk 0:00:07.9]} 124... Rc7+ {[%clk
0:00:04.1]} 125. Kb4 {[%clk 0:00:06.7]} 125... Kf5 {[%clk 0:00:04]} 126. Rh5+
{[%clk 0:00:06.3]} 126... Kg4 {[%clk 0:00:04.1]} 127. Rh1 {[%clk 0:00:05.2]}
127... Kf3 {[%clk 0:00:04.5]} 128. Bc3 {[%clk 0:00:05.8]} 128... Rb7+ {[%clk
0:00:03.9]} 129. Kc4 {[%clk 0:00:05.9]} 129... Kg2 {[%clk 0:00:04.8]} 130. Rd1
{[%clk 0:00:05.5]} 130... Rc7+ {[%clk 0:00:05.3]} 131. Kd3 {[%clk 0:00:06.2]}
131... Kf2 {[%clk 0:00:05.3]} 132. Bd4+ {[%clk 0:00:06.7]} 1/2-1/2

[Event "Early-Titled-Tuesday-Blitz-May-07-2024"]
[Site "Chess.com"]
[Date "2024.05.07"]
[Round "7"]
[White "Pedrada88"]
[Black "GoltsevDmitry2000"]
[Result "1/2-1/2"]
[WhiteElo "2560"]
[BlackElo "2769"]
[TimeControl "180+1"]
[EndTime "9:27:00 PDT"]
[Termination "Game drawn - insufficient material"]

1. Nf3 {[%clk 0:02:56.4]} 1... d5 {[%clk 0:02:59.7]} 2. g3 {[%clk 0:02:56.8]}
2... c6 {[%clk 0:02:58.5]} 3. Bg2 {[%clk 0:02:57.2]} 3... Nf6 {[%clk 0:02:59.4]}
4. O-O {[%clk 0:02:57.5]} 4... g6 {[%clk 0:02:58.4]} 5. c4 {[%clk 0:02:56.5]}
5... Bg7 {[%clk 0:02:58.6]} 6. d4 {[%clk 0:02:55.9]} 6... O-O {[%clk 0:02:56.8]}
7. Qa4 {[%clk 0:02:54.4]} 7... Nbd7 {[%clk 0:02:56.3]} 8. cxd5 {[%clk
0:02:53.6]} 8... Nxd5 {[%clk 0:02:55]} 9. Nc3 {[%clk 0:02:52.9]} 9... N7b6
{[%clk 0:02:53.9]} 10. Qc2 {[%clk 0:02:49.8]} 10... Bg4 {[%clk 0:02:53.5]} 11.
Rd1 {[%clk 0:02:48]} 11... Rc8 {[%clk 0:02:51.2]} 12. h3 {[%clk 0:02:46.6]}
12... Be6 {[%clk 0:02:48.5]} 13. e4 {[%clk 0:02:45.1]} 13... Nxc3 {[%clk
0:02:45.5]} 14. bxc3 {[%clk 0:02:45.1]} 14... h6 {[%clk 0:02:46]} 15. a4 {[%clk
0:02:44.2]} 15... Qd7 {[%clk 0:02:45.8]} 16. a5 {[%clk 0:02:43.5]} 16... Nc4
{[%clk 0:02:46]} 17. Qe2 {[%clk 0:02:36.6]} 17... b5 {[%clk 0:02:42.6]} 18. axb6
{[%clk 0:02:34.7]} 18... axb6 {[%clk 0:02:43.5]} 19. Kh2 {[%clk 0:02:31.1]}
19... b5 {[%clk 0:02:43.3]} 20. Bf4 {[%clk 0:02:28.8]} 20... g5 {[%clk
0:02:42.4]} 21. Be3 {[%clk 0:02:21.5]} 21... Ra8 {[%clk 0:02:42.3]} 22. h4
{[%clk 0:02:17.4]} 22... g4 {[%clk 0:02:24.6]} 23. Ne1 {[%clk 0:02:17.6]} 23...
Nxe3 {[%clk 0:01:41.1]} 24. Qxe3 {[%clk 0:02:15.4]} 24... Qb7 {[%clk 0:01:19.4]}
25. Nd3 {[%clk 0:02:14.2]} 25... Bc4 {[%clk 0:01:12.5]} 26. Nc5 {[%clk
0:02:13.6]} 26... Qc7 {[%clk 0:01:07.8]} 27. e5 {[%clk 0:02:05.1]} 27... e6
{[%clk 0:00:54.7]} 28. Qf4 {[%clk 0:01:59.4]} 28... f5 {[%clk 0:00:53.4]} 29.
exf6 {[%clk 0:01:50.7]} 29... Qxf4 {[%clk 0:00:53.4]} 30. gxf4 {[%clk
0:01:51.6]} 30... Rxa1 {[%clk 0:00:51.3]} 31. Rxa1 {[%clk 0:01:44.2]} 31... Rxf6
{[%clk 0:00:51.5]} 32. Kg3 {[%clk 0:01:44.8]} 32... h5 {[%clk 0:00:45.8]} 33.
Ra8+ {[%clk 0:01:42.6]} 33... Kf7 {[%clk 0:00:41.9]} 34. Nd7 {[%clk 0:01:38.9]}
34... Rh6 {[%clk 0:00:38.5]} 35. Bxc6 {[%clk 0:01:35]} 35... e5 {[%clk
0:00:37.5]} 36. Ra7 {[%clk 0:01:27.9]} 36... Kg8 {[%clk 0:00:28.6]} 37. d5
{[%clk 0:01:18.6]} 37... exf4+ {[%clk 0:00:26]} 38. Kxf4 {[%clk 0:01:19.5]}
38... Bxc3 {[%clk 0:00:25.1]} 39. Kg5 {[%clk 0:01:09]} 39... Bd2+ {[%clk
0:00:23.9]} 40. Kf5 {[%clk 0:01:09.3]} 40... b4 {[%clk 0:00:19.8]} 41. Nf6+
{[%clk 0:01:07.9]} 41... Kf8 {[%clk 0:00:19.4]} 42. Ra8+ {[%clk 0:01:04.2]}
42... Ke7 {[%clk 0:00:18.7]} 43. Ng8+ {[%clk 0:01:00.6]} 43... Kd6 {[%clk
0:00:19]} 44. Nxh6 {[%clk 0:01:00.8]} 44... Bxh6 {[%clk 0:00:19.9]} 45. Rb8
{[%clk 0:00:58.7]} 45... Bd2 {[%clk 0:00:19.2]} 46. Kg6 {[%clk 0:00:57.2]} 46...
Kc7 {[%clk 0:00:19.4]} 47. Rb7+ {[%clk 0:00:56.6]} 47... Kd6 {[%clk 0:00:18.9]}
48. Kxh5 {[%clk 0:00:56.6]} 48... Be2 {[%clk 0:00:17.9]} 49. Kg6 {[%clk
0:00:55.8]} 49... Bd3+ {[%clk 0:00:17.1]} 50. Kf7 {[%clk 0:00:47.5]} 50... Be2
{[%clk 0:00:17.1]} 51. h5 {[%clk 0:00:45.7]} 51... g3 {[%clk 0:00:17.4]} 52.
fxg3 {[%clk 0:00:45.1]} 52... Bxh5+ {[%clk 0:00:17.9]} 53. Kg7 {[%clk
0:00:45.1]} 53... Bd1 {[%clk 0:00:17.6]} 54. Kf6 {[%clk 0:00:42.6]} 54... Bc3+
{[%clk 0:00:17.3]} 55. Kf5 {[%clk 0:00:42.5]} 55... Bc2+ {[%clk 0:00:17.1]} 56.
Kf4 {[%clk 0:00:42.4]} 56... Kc5 {[%clk 0:00:13.7]} 57. g4 {[%clk 0:00:40.9]}
57... Bd2+ {[%clk 0:00:13]} 58. Kf3 {[%clk 0:00:38.2]} 58... Bd1+ {[%clk
0:00:12.6]} 59. Kg3 {[%clk 0:00:38.1]} 59... Be1+ {[%clk 0:00:12.9]} 60. Kf4
{[%clk 0:00:37.6]} 60... Bd2+ {[%clk 0:00:13.3]} 61. Kf5 {[%clk 0:00:38.1]}
61... Bc2+ {[%clk 0:00:13.8]} 62. Ke6 {[%clk 0:00:38.1]} 62... Bd1 {[%clk
0:00:12.8]} 63. Kf5 {[%clk 0:00:36.2]} 63... Bc2+ {[%clk 0:00:12.8]} 64. Ke5
{[%clk 0:00:34.4]} 64... Bc3+ {[%clk 0:00:10.8]} 65. Kf4 {[%clk 0:00:33.8]}
65... Bd2+ {[%clk 0:00:10.8]} 66. Kg3 {[%clk 0:00:32.4]} 66... Be1+ {[%clk
0:00:09.9]} 67. Kg2 {[%clk 0:00:31.8]} 67... Bd2 {[%clk 0:00:09.8]} 68. Rb8
{[%clk 0:00:27.4]} 68... Bd1 {[%clk 0:00:07]} 69. Rc8 {[%clk 0:00:23.9]} 69...
Kd6 {[%clk 0:00:04.9]} 70. Rd8+ {[%clk 0:00:22.4]} 70... Kc5 {[%clk 0:00:05.1]}
71. Bd7 {[%clk 0:00:10.4]} 71... b3 {[%clk 0:00:04.7]} 72. d6 {[%clk 0:00:10.2]}
72... b2 {[%clk 0:00:03.6]} 73. Rb8 {[%clk 0:00:10.4]} 73... Kxd6 {[%clk
0:00:01.5]} 74. Rxb2 {[%clk 0:00:09.3]} 74... Bc3 {[%clk 0:00:02]} 75. Rb1
{[%clk 0:00:07.9]} 75... Bc2 {[%clk 0:00:02.6]} 76. Rc1 {[%clk 0:00:08.1]} 76...
Be4+ {[%clk 0:00:03.5]} 77. Kf2 {[%clk 0:00:05.8]} 77... Bd4+ {[%clk 0:00:03.8]}
78. Ke2 {[%clk 0:00:06.3]} 78... Be5 {[%clk 0:00:03.7]} 79. Rd1+ {[%clk
0:00:06.4]} 79... Ke7 {[%clk 0:00:04.2]} 80. Bf5 {[%clk 0:00:06.6]} 80... Bc6
{[%clk 0:00:03.1]} 81. Kd3 {[%clk 0:00:05.1]} 81... Kf6 {[%clk 0:00:03.5]} 82.
Be4 {[%clk 0:00:05.1]} 82... Ba4 {[%clk 0:00:03.8]} 83. Rf1+ {[%clk 0:00:04.6]}
83... Kg7 {[%clk 0:00:03.7]} 84. Rf5 {[%clk 0:00:03.9]} 84... Bd6 {[%clk
0:00:03.8]} 85. Ra5 {[%clk 0:00:04.2]} 85... Be8 {[%clk 0:00:03.7]} 86. Ra7+
{[%clk 0:00:04.4]} 86... Kf6 {[%clk 0:00:03.8]} 87. Ra6 {[%clk 0:00:05.3]} 87...
Ke5 {[%clk 0:00:03.9]} 88. Ra5+ {[%clk 0:00:05.9]} 88... Kf6 {[%clk 0:00:04]}
89. Rf5+ {[%clk 0:00:06.4]} 89... Ke7 {[%clk 0:00:03.4]} 90. Rf2 {[%clk
0:00:07.3]} 90... Bb5+ {[%clk 0:00:03.7]} 91. Kc3 {[%clk 0:00:07.1]} 91... Be5+
{[%clk 0:00:03.9]} 92. Kb4 {[%clk 0:00:06.9]} 92... Bd7 {[%clk 0:00:04.1]} 93.
Kc5 {[%clk 0:00:06.7]} 93... Bd6+ {[%clk 0:00:05]} 94. Kd5 {[%clk 0:00:06.7]}
94... Be6+ {[%clk 0:00:05.1]} 95. Kd4 {[%clk 0:00:06.8]} 95... Bxg4 {[%clk
0:00:05.6]} 96. Rg2 {[%clk 0:00:07]} 96... Be6 {[%clk 0:00:05.4]} 97. Rg7+
{[%clk 0:00:07.1]} 97... Kf6 {[%clk 0:00:05.8]} 98. Rg6+ {[%clk 0:00:06.8]}
98... Kf7 {[%clk 0:00:05.8]} 99. Rh6 {[%clk 0:00:06.7]} 99... Ke7 {[%clk
0:00:05.9]} 100. Rh7+ {[%clk 0:00:07]} 100... Kf6 {[%clk 0:00:06.3]} 101. Ra7
{[%clk 0:00:06.7]} 101... Bh2 {[%clk 0:00:05.8]} 102. Ra6 {[%clk 0:00:06.5]}
102... Ke7 {[%clk 0:00:06]} 103. Ra7+ {[%clk 0:00:05.9]} 103... Kf6 {[%clk
0:00:06.5]} 104. Ra3 {[%clk 0:00:05.2]} 104... Bg1+ {[%clk 0:00:06.2]} 105. Kd3
{[%clk 0:00:04.9]} 105... Ke5 {[%clk 0:00:05.6]} 106. Ra5+ {[%clk 0:00:04.9]}
106... Kf4 {[%clk 0:00:05.8]} 107. Ra4 {[%clk 0:00:05]} 107... Ke5 {[%clk
0:00:05.3]} 108. Ra6 {[%clk 0:00:04.2]} 108... Bh3 {[%clk 0:00:05.1]} 109. Ra8
{[%clk 0:00:03.6]} 109... Bf1+ {[%clk 0:00:05.2]} 110. Kd2 {[%clk 0:00:03.8]}
110... Kxe4 {[%clk 0:00:05.2]} 111. Ra1 {[%clk 0:00:03.7]} 111... Be3+ {[%clk
0:00:05.6]} 112. Ke1 {[%clk 0:00:04.1]} 112... Bc4 {[%clk 0:00:04.1]} 113. Ra4
{[%clk 0:00:04.2]} 113... Kd3 {[%clk 0:00:04.4]} 114. Ra3+ {[%clk 0:00:04.7]}
114... Kc2 {[%clk 0:00:04.2]} 115. Rxe3 {[%clk 0:00:04.8]} 115... Kb2 {[%clk
0:00:03.4]} 116. Kd2 {[%clk 0:00:05.1]} 116... Ba2 {[%clk 0:00:03.1]} 117. Re5
{[%clk 0:00:04.8]} 117... Ka1 {[%clk 0:00:03.3]} 118. Rb5 {[%clk 0:00:05]}
118... Bb1 {[%clk 0:00:03.2]} 119. Kc3 {[%clk 0:00:05.3]} 119... Ba2 {[%clk
0:00:03.7]} 120. Rb2 {[%clk 0:00:05.8]} 120... Bb1 {[%clk 0:00:04]} 121. Kb3
{[%clk 0:00:05.7]} 121... Bg6 {[%clk 0:00:04.3]} 122. Rd2 {[%clk 0:00:05.6]}
122... Bb1 {[%clk 0:00:04.8]} 123. Ka3 {[%clk 0:00:05.7]} 123... Bg6 {[%clk
0:00:04.8]} 124. Rd1+ {[%clk 0:00:06.1]} 124... Bb1 {[%clk 0:00:05]} 125. Rd5
{[%clk 0:00:06.6]} 125... Bh7 {[%clk 0:00:05.3]} 126. Rb5 {[%clk 0:00:06.6]}
126... Bb1 {[%clk 0:00:05.5]} 127. Rb2 {[%clk 0:00:06.9]} 127... Bg6 {[%clk
0:00:05.6]} 128. Kb3 {[%clk 0:00:07.3]} 128... Bb1 {[%clk 0:00:05.5]} 129. Kc3
{[%clk 0:00:07.7]} 129... Bg6 {[%clk 0:00:05.3]} 130. Rb5 {[%clk 0:00:07.7]}
130... Bb1 {[%clk 0:00:05.3]} 131. Ra5+ {[%clk 0:00:08.3]} 131... Ba2 {[%clk
0:00:05.2]} 132. Rc5 {[%clk 0:00:07.4]} 132... Bb1 {[%clk 0:00:05.4]} 133. Kb3
{[%clk 0:00:07.4]} 133... Ba2+ {[%clk 0:00:05.1]} 134. Ka3 {[%clk 0:00:07.9]}
134... Bb1 {[%clk 0:00:05.3]} 135. Rb5 {[%clk 0:00:08.1]} 135... Bg6 {[%clk
0:00:05.2]} 136. Rb2 {[%clk 0:00:08.4]} 136... Bb1 {[%clk 0:00:05.4]} 137. Rd2
{[%clk 0:00:08.5]} 137... Bg6 {[%clk 0:00:05.5]} 138. Kb3 {[%clk 0:00:08.4]}
138... Bb1 {[%clk 0:00:05.6]} 139. Kc3 {[%clk 0:00:08.8]} 139... Ba2 {[%clk
0:00:05.5]} 140. Kc2 {[%clk 0:00:08.8]} 140... Bb1+ {[%clk 0:00:05.6]} 141. Kc1
{[%clk 0:00:09.3]} 141... Ba2 {[%clk 0:00:05.9]} 142. Rb2 {[%clk 0:00:09.8]}
142... Bf7 {[%clk 0:00:05.9]} 143. Rb6 {[%clk 0:00:09.2]} 143... Ba2 {[%clk
0:00:05.7]} 144. Kc2 {[%clk 0:00:09.3]} 144... Bf7 {[%clk 0:00:05.5]} 145. Rc6
{[%clk 0:00:07.7]} 145... Ba2 {[%clk 0:00:05.5]} 146. Rb6 {[%clk 0:00:07.6]}
146... Bg8 {[%clk 0:00:05]} 147. Rb1+ {[%clk 0:00:08.2]} 147... Ka2 {[%clk
0:00:05.2]} 148. Rh1 {[%clk 0:00:07.4]} 148... Bb3+ {[%clk 0:00:03.3]} 149. Kc3
{[%clk 0:00:07.8]} 149... Bd5 {[%clk 0:00:04.2]} 150. Rd1 {[%clk 0:00:07.1]}
150... Be6 {[%clk 0:00:03.1]} 151. Rd6 {[%clk 0:00:07.1]} 151... Bf7 {[%clk
0:00:03]} 152. Ra6+ {[%clk 0:00:07.3]} 152... Kb1 {[%clk 0:00:03.2]} 153. Ra7
{[%clk 0:00:06.5]} 153... Be6 {[%clk 0:00:03.3]} 154. Re7 {[%clk 0:00:06.5]}
154... Bg8 {[%clk 0:00:03.5]} 155. Re8 {[%clk 0:00:06.8]} 155... Bd5 {[%clk
0:00:03.7]} 156. Re2 {[%clk 0:00:06.9]} 156... Bf7 {[%clk 0:00:04]} 157. Rb2+
{[%clk 0:00:06.6]} 157... Ka1 {[%clk 0:00:04.5]} 158. Rg2 {[%clk 0:00:05.7]}
158... Ba2 {[%clk 0:00:05]} 159. Rg1+ {[%clk 0:00:06.2]} 159... Bb1 {[%clk
0:00:05.3]} 160. Rg6 {[%clk 0:00:06.1]} 160... Bxg6 {[%clk 0:00:05.3]} 1/2-1/2

[Event "Early-Titled-Tuesday-Blitz-May-07-2024"]
[Site "Chess.com"]
[Date "2024.05.07"]
[Round "8"]
[White "only_strong_moves"]
[Black "chess_blitz00"]
[Result "1-0"]
[WhiteElo "2706"]
[BlackElo "2539"]
[TimeControl "180+1"]
[EndTime "9:30:58 PDT"]
[Termination "only_strong_moves won by checkmate"]

1. Nc3 {[%clk 0:03:00.9]} 1... d6 {[%clk 0:03:00.9]} 2. d4 {[%clk 0:03:00.2]}
2... Nf6 {[%clk 0:02:54.8]} 3. e4 {[%clk 0:02:58.7]} 3... c6 {[%clk 0:02:55.4]}
4. f4 {[%clk 0:02:57.1]} 4... Qa5 {[%clk 0:02:54.7]} 5. Bd3 {[%clk 0:02:56.3]}
5... e5 {[%clk 0:02:54.3]} 6. Nf3 {[%clk 0:02:54.7]} 6... Nbd7 {[%clk
0:02:49.5]} 7. Bd2 {[%clk 0:02:52.3]} 7... Qc7 {[%clk 0:02:48.2]} 8. Qe2 {[%clk
0:02:51.3]} 8... Be7 {[%clk 0:02:47.8]} 9. O-O-O {[%clk 0:02:51.3]} 9... O-O
{[%clk 0:02:31.3]} 10. g4 {[%clk 0:02:51]} 10... b5 {[%clk 0:02:03]} 11. g5
{[%clk 0:02:50]} 11... Ne8 {[%clk 0:02:00.6]} 12. f5 {[%clk 0:02:36.9]} 12... a6
{[%clk 0:01:37.5]} 13. Rhg1 {[%clk 0:02:34.2]} 13... exd4 {[%clk 0:01:37]} 14.
Nxd4 {[%clk 0:02:33.4]} 14... c5 {[%clk 0:01:37]} 15. Nd5 {[%clk 0:02:32.4]}
15... Qb7 {[%clk 0:01:30.9]} 16. Nxe7+ {[%clk 0:02:32.2]} 16... Kh8 {[%clk
0:01:31.8]} 17. g6 {[%clk 0:02:28.1]} 17... Ne5 {[%clk 0:01:22.9]} 18. Bg5
{[%clk 0:02:16.7]} 18... f6 {[%clk 0:01:07.8]} 19. Qh5 {[%clk 0:02:15.6]} 19...
h6 {[%clk 0:01:03.9]} 20. Bxh6 {[%clk 0:02:15.6]} 20... Qxe7 {[%clk 0:01:00.8]}
21. Bd2+ {[%clk 0:02:13.2]} 21... Kg8 {[%clk 0:01:00.8]} 22. Qh7# {[%clk
0:02:13.3]} 1-0